fUSD/lending_fUSD_20250930
["ID","MTS","AMOUNT","RATE_DAILY","PERIOD"]
[388525328,1759231862355,-300.0,0.00019451,2]
[388525329,1759231862368,-300.0,0.00019451,2]
[388525330,1759231862379,-300.0,0.00019451,2]
[388525331,1759231862389,-500.0,0.00019452,2]
[388525332,1759231862399,-500.0,0.00019452,2]
[388525333,1759231862411,-804.14,0.00019452,2]
[388525334,1759231862424,-500.0,0.00019452,2]
[388525335,1759231862434,-500.0,0.00019452,2]
[388525336,1759231862445,-812.92,0.00019452,2]
[388525337,1759231862455,-500.0,0.00019452,2]
[388525338,1759231862464,-790.78,0.00019452,2]
[388525339,1759231862474,-1288.23,0.00019452,2]
[388525340,1759231862484,-1924.03,0.00019452,2]
[388525341,1759231862494,-1045.22,0.00019452,2]
[388525342,1759231862503,-695.15,0.00019452,2]
[388525343,1759231862514,-695.15,0.00019452,2]
[388525344,1759231862524,-500.0,0.00019452,2]
[388525345,1759231862534,-1007.25,0.00019452,2]
[388525346,1759231862544,-500.0,0.00019452,2]
[388525347,1759231862555,-670.43,0.00019452,2]
[388525348,1759231862564,-2791.44,0.00019452,2]
[388525349,1759231862574,-500.0,0.00019452,2]
[388525350,1759231862585,-1439.78,0.00019452,2]
[388525351,1759231862595,-1835.99,0.00019452,2]
[388525352,1759231862604,-500.0,0.00019452,2]
[388525353,1759231862614,-500.0,0.00019452,2]
[388525354,1759231862623,-526.0,0.00019452,2]
[388525355,1759231862633,-1156.32,0.00019452,2]
[388525356,1759231862642,-527.4,0.00019452,2]
[388525357,1759231862651,-500.0,0.00019452,2]
[388525358,1759231862661,-2080.97,0.00019452,2]
[388525359,1759231862671,-1675.31,0.00019452,2]
[388525360,1759231862681,-545.08,0.00019452,2]
[388525361,1759231862690,-597.49,0.00019452,2]
[388525362,1759231862701,-500.0,0.00019452,2]
[388525363,1759231862711,-1081.87,0.00019452,2]
[388525364,1759231862720,-1847.81,0.00019452,2]
[388525365,1759231862729,-809.51,0.00019452,2]
[388525366,1759231862740,-500.0,0.00019452,2]
[388525367,1759231862760,-500.0,0.00019452,2]
[388525368,1759231862770,-609.42,0.00019452,2]
[388525369,1759231862780,-675.67,0.00019452,2]
[388525370,1759231862789,-746.81,0.00019452,2]
[388525371,1759231862799,-500.0,0.00019452,2]
[388525372,1759231862808,-500.0,0.00019452,2]
[388525373,1759231862818,-500.0,0.00019452,2]
[388525374,1759231862827,-500.0,0.00019452,2]
[388525375,1759231862836,-1462.97,0.00019452,2]
[388525376,1759231862845,-500.0,0.00019452,2]
[388525377,1759231862855,-1669.62,0.00019452,2]
[388525378,1759231862865,-2456.48,0.00019452,2]
[388525379,1759231862875,-2456.48,0.00019452,2]
[388525380,1759231862885,-500.0,0.00019452,2]
[388525381,1759231862894,-795.26,0.00019452,2]
[388525382,1759231862904,-500.0,0.00019452,2]
[388525383,1759231862914,-500.0,0.00019452,2]
[388525384,1759231862924,-1043.6,0.00019452,2]
[388525385,1759231862934,-965.24,0.00019452,2]
[388525386,1759231862944,-875.61,0.00019452,2]
[388525387,1759231862954,-804.01,0.00019452,2]
[388525388,1759231862963,-648.87,0.00019452,2]
[388525389,1759231862972,-500.0,0.00019452,2]
[388525390,1759231862982,-1090.04,0.00019452,2]
[388525391,1759231862991,-500.0,0.00019452,2]
[388525392,1759231863000,-500.0,0.00019452,2]
[388525393,1759231863011,-525.64,0.00019452,2]
[388525394,1759231863021,-1169.59,0.00019452,2]
[388525395,1759231863030,-544.08,0.00019452,2]
[388525396,1759231863039,-750.65,0.00019452,2]
[388525397,1759231863049,-751.63,0.00019452,2]
[388525398,1759231863059,-852.16,0.00019452,2]
[388525399,1759231863068,-500.0,0.00019452,2]
[388525400,1759231863078,-500.0,0.00019452,2]
[388525401,1759231863095,-1029.05,0.00019452,2]
[388525402,1759231863104,-519.02,0.00019452,2]
[388525403,1759231863114,-500.0,0.00019452,2]
[388525404,1759231863123,-500.0,0.00019452,2]
[388525405,1759231863133,-546.36,0.00019452,2]
[388525406,1759231863143,-500.0,0.00019452,2]
[388525407,1759231863152,-500.0,0.00019452,2]
[388525408,1759231863162,-743.94,0.00019452,2]
[388525409,1759231863171,-500.0,0.00019452,2]
[388525410,1759231863181,-2047.81,0.00019452,2]
[388525411,1759231863192,-1170.18,0.00019452,2]
[388525412,1759231863202,-500.0,0.00019452,2]
[388525413,1759231863212,-500.0,0.00019452,2]
[388525414,1759231863221,-500.0,0.00019452,2]
[388525415,1759231863232,-668.83,0.00019452,2]
[388525416,1759231863242,-500.0,0.00019452,2]
[388525417,1759231863252,-500.0,0.00019452,2]
[388525418,1759231863262,-2864.65,0.00019452,2]
[388525419,1759231863273,-1909.76,0.00019452,2]
[388525420,1759231863283,-924.45,0.00019452,2]
[388525421,1759231863292,-598.1,0.00019452,2]
[388525422,1759231863302,-500.0,0.00019452,2]
[388525423,1759231863312,-1429.67,0.00019452,2]
[388525424,1759231863322,-606.74,0.00019452,2]
[388525425,1759231863332,-872.91,0.00019452,2]
[388525426,1759231863342,-500.0,0.00019452,2]
[388525427,1759231863501,-501.71,0.00019452,2]
[388525428,1759231863511,-923.46,0.00019452,2]
[388525429,1759231863520,-675.36,0.00019452,2]
[388525430,1759231863529,-361.3289411,0.00019452,2]
[388525431,1759231863538,-500.0,0.00019452,2]
[388525432,1759231863547,-500.0,0.00019452,2]
[388525433,1759231863556,-500.0,0.00019452,2]
[388525434,1759231863566,-500.0,0.00019452,2]
[388525435,1759231863575,-500.0,0.00019452,2]
[388525436,1759231863584,-500.0,0.00019452,2]
[388525437,1759231863594,-500.0,0.00019452,2]
[388525438,1759231863604,-500.0,0.00019452,2]
[388525439,1759231863614,-500.0,0.00019452,2]
[388525440,1759231863623,-500.0,0.00019452,2]
[388525441,1759231863632,-500.0,0.00019452,2]
[388525442,1759231863642,-500.0,0.00019452,2]
[388525443,1759231863651,-500.0,0.00019452,2]
[388525444,1759231863660,-500.0,0.00019452,2]
[388525445,1759231863670,-500.0,0.00019452,2]
[388525446,1759231863680,-500.0,0.00019452,2]
[388525447,1759231863689,-500.0,0.00019452,2]
[388525448,1759231863699,-500.0,0.00019452,2]
[388525449,1759231863708,-500.0,0.00019452,2]
[388525450,1759231863717,-500.0,0.00019452,2]
[388525451,1759231863727,-500.0,0.00019452,2]
[388525452,1759231863736,-168.7168492,0.00019452,2]
[388525453,1759231863746,-500.0,0.00019452,2]
[388525454,1759231863756,-500.0,0.00019452,2]
[388525455,1759231863766,-1034.97,0.00019452,2]
[388525456,1759231863775,-500.0,0.00019452,2]
[388525457,1759231863785,-500.0,0.00019452,2]
[388525458,1759231863794,-500.0,0.00019452,2]
[388525459,1759231863804,-500.0,0.00019452,2]
[388525460,1759231863815,-500.0,0.00019452,2]
[388525461,1759231863824,-536.41,0.00019452,2]
[388525462,1759231863832,-500.0,0.00019452,2]
[388525463,1759231863842,-500.0,0.00019452,2]
[388525464,1759231863852,-300.0,0.00019452,2]
[388525465,1759231863863,-500.0,0.00019452,2]
[388525466,1759231863873,-601.13610229,0.00019452,2]
[388525467,1759231863882,-500.0,0.00019452,2]
[388525468,1759231863892,-500.0,0.00019452,2]
[388525469,1759231863902,-500.0,0.00019452,2]
[388525470,1759231863912,-500.0,0.00019452,2]
[388525471,1759231863921,-500.0,0.00019452,2]
[388525472,1759231863931,-500.0,0.00019452,2]
[388525473,1759231863943,-500.0,0.00019452,2]
[388525474,1759231863955,-500.0,0.00019452,2]
[388525475,1759231863964,-500.0,0.00019452,2]
[388525476,1759231863974,-532.9,0.00019452,2]
[388525477,1759231863983,-517.35,0.00019452,2]
[388525478,1759231863993,-500.0,0.00019452,2]
[388525479,1759231864002,-500.0,0.00019452,2]
[388525480,1759231864012,-3181.26,0.00019452,2]
[388525481,1759231864021,-500.0,0.00019452,2]
[388525482,1759231864030,-500.0,0.00019452,2]
[388525483,1759231864039,-500.0,0.00019452,2]
[388525484,1759231864050,-500.0,0.00019452,2]
[388525485,1759231864059,-500.0,0.00019452,2]
[388525486,1759231864068,-2279.22,0.00019452,2]
[388525487,1759231864078,-500.0,0.00019452,2]
[388525488,1759231864087,-960.84,0.00019452,2]
[388525489,1759231864096,-500.0,0.00019452,2]
[388525490,1759231864105,-1150.24,0.00019452,2]
[388525491,1759231864116,-500.0,0.00019452,2]
[388525492,1759231864125,-500.0,0.00019452,2]
[388525493,1759231864134,-500.0,0.00019452,2]
[388525494,1759231864143,-500.0,0.00019452,2]
[388525495,1759231864152,-634.22,0.00019452,2]
[388525496,1759231864162,-500.0,0.00019452,2]
[388525497,1759231864171,-508.88,0.00019452,2]
[388525498,1759231864180,-500.0,0.00019452,2]
[388525499,1759231864190,-500.0,0.00019452,2]
[388525500,1759231864201,-300.3019141,0.00019452,2]
[388525501,1759231864210,-500.0,0.00019452,2]
[388525502,1759231864220,-500.0,0.00019452,2]
[388525503,1759231864230,-618.08,0.00019452,2]
[388525504,1759231864239,-1856.87,0.00019452,2]
[388525505,1759231864249,-500.0,0.00019452,2]
[388525506,1759231864259,-500.0,0.00019452,2]
[388525507,1759231864269,-500.0,0.00019452,2]
[388525508,1759231864278,-943.33,0.00019452,2]
[388525509,1759231864288,-500.0,0.00019452,2]
[388525510,1759231864297,-500.0,0.00019452,2]
[388525511,1759231864306,-500.0,0.00019452,2]
[388525512,1759231864314,-1450.16,0.00019452,2]
[388525513,1759231864324,-500.0,0.00019452,2]
[388525514,1759231864334,-500.0,0.00019452,2]
[388525515,1759231864346,-500.0,0.00019452,2]
[388525516,1759231864355,-2977.58,0.00019452,2]
[388525517,1759231864363,-500.0,0.00019452,2]
[388525518,1759231864372,-3073.63,0.00019452,2]
[388525519,1759231864382,-947.66,0.00019452,2]
[388525520,1759231864391,-500.0,0.00019452,2]
[388525521,1759231864400,-500.0,0.00019452,2]
[388525522,1759231864411,-565.61,0.00019452,2]
[388525523,1759231864421,-500.0,0.00019452,2]
[388525524,1759231864431,-1061.68,0.00019452,2]
[388525525,1759231864441,-500.0,0.00019452,2]
[388525526,1759231864450,-500.0,0.00019452,2]
[388525527,1759231864459,-500.0,0.00019452,2]
[388525528,1759231864467,-500.0,0.00019452,2]
[388525529,1759231864477,-701.6,0.00019452,2]
[388525530,1759231864486,-500.0,0.00019452,2]
[388525531,1759231864495,-500.0,0.00019452,2]
[388525532,1759231864504,-500.0,0.00019452,2]
[388525533,1759231864513,-500.0,0.00019452,2]
[388525534,1759231864522,-500.0,0.00019452,2]
[388525535,1759231864531,-500.0,0.00019452,2]
[388525536,1759231864539,-500.0,0.00019452,2]
[388525537,1759231864549,-500.0,0.00019452,2]
[388525538,1759231864557,-706.14,0.00019452,2]
[388525539,1759231864567,-1211.02,0.00019452,2]
[388525540,1759231864574,-524.85044819,0.00019452,2]
[388525541,1759231864582,-2250.11,0.00019452,2]
[388525542,1759231864589,-500.0,0.00019452,2]
[388525543,1759231864596,-500.0,0.00019452,2]
[388525544,1759231864605,-500.0,0.00019452,2]
[388525545,1759231864615,-500.0,0.00019452,2]
[388525546,1759231864623,-500.0,0.00019452,2]
[388525547,1759231864631,-1394.62,0.00019452,2]
[388525548,1759231864640,-500.0,0.00019452,2]
[388525549,1759231864647,-500.0,0.00019452,2]
[388525550,1759231864654,-2459.99,0.00019452,2]
[388525551,1759231864661,-1544.34,0.00019452,2]
[388525552,1759231864668,-500.0,0.00019452,2]
[388525553,1759231864678,-500.0,0.00019452,2]
[388525554,1759231864688,-500.0,0.00019452,2]
[388525555,1759231864698,-1167.35,0.00019452,2]
[388525556,1759231864708,-500.0,0.00019452,2]
[388525557,1759231864718,-738.96,0.00019452,2]
[388525558,1759231864727,-500.0,0.00019452,2]
[388525559,1759231864737,-500.0,0.00019452,2]
[388525560,1759231864747,-500.0,0.00019452,2]
[388525561,1759231864757,-2258.39,0.00019452,2]
[388525562,1759231864768,-500.0,0.00019452,2]
[388525563,1759231864777,-772.02,0.00019452,2]
[388525564,1759231864786,-500.0,0.00019452,2]
[388525565,1759231864796,-2745.29,0.00019452,2]
[388525566,1759231864805,-1685.71,0.00019452,2]
[388525567,1759231864815,-500.0,0.00019452,2]
[388525568,1759231864824,-500.0,0.00019452,2]
[388525569,1759231864834,-564.08,0.00019452,2]
[388525570,1759231864843,-500.0,0.00019452,2]
[388525571,1759231864852,-500.0,0.00019452,2]
[388525572,1759231864862,-500.0,0.00019452,2]
[388525573,1759231864871,-500.0,0.00019452,2]
[388525574,1759231864880,-575.42,0.00019452,2]
[388525575,1759231864889,-500.0,0.00019452,2]
[388525576,1759231864899,-500.0,0.00019452,2]
[388525577,1759231864910,-1281.0,0.00019452,2]
[388525578,1759231864919,-500.0,0.00019452,2]
[388525579,1759231864928,-1297.04,0.00019452,2]
[388525580,1759231864938,-500.0,0.00019452,2]
[388525581,1759231864948,-766.88,0.00019452,2]
[388525582,1759231864958,-848.28,0.00019452,2]
[388525583,1759231864968,-500.0,0.00019452,2]
[388525584,1759231864978,-1126.66,0.00019452,2]
[388525585,1759231864989,-143.16329476,0.00019452,2]
[388525586,1759231867641,-500.0,0.00019178,2]
[388525587,1759231867652,-206.416758,0.00019178,2]
[388525588,1759231867663,-4.40824036,0.00019178,2]
[388525589,1759231867703,-165.30202064,0.00019178,2]
[388525590,1759231867713,-206.416758,0.00019178,2]
[388525591,1759231867723,-169.710261,0.00019178,2]
[388525592,1759231867734,-206.416758,0.00019178,2]
[388525593,1759231867744,-169.710261,0.00019178,2]
[388525594,1759231867754,-1552.7,0.00019178,2]
[388525595,1759231867764,-206.416758,0.00019178,2]
[388525596,1759231867774,-1315.5,0.00019178,2]
[388525597,1759231867790,-500.0,0.00019178,2]
[388525598,1759231867800,-206.416758,0.00019178,2]
[388525599,1759231867810,-500.0,0.00019178,2]
[388525600,1759231867821,-206.416758,0.00019178,2]
[388525601,1759231867831,-1466.26922485,0.00019452,2]
[388525602,1759231867852,-566.06748039,0.00019452,2]
[388525603,1759231867863,-500.0,0.00019452,2]
[388525604,1759231867874,-500.0,0.00019452,2]
[388525605,1759231867885,-500.0,0.00019452,2]
[388525606,1759231867895,-500.0,0.00019452,2]
[388525607,1759231867906,-519.49,0.00019452,2]
[388525608,1759231867915,-500.0,0.00019452,2]
[388525609,1759231867926,-500.0,0.00019452,2]
[388525610,1759231867936,-500.0,0.00019452,2]
[388525611,1759231867946,-784.29,0.00019452,2]
[388525612,1759231867957,-500.0,0.00019452,2]
[388525613,1759231867967,-858.79,0.00019452,2]
[388525614,1759231867978,-500.0,0.00019452,2]
[388525615,1759231867989,-500.0,0.00019452,2]
[388525616,1759231867999,-500.0,0.00019452,2]
[388525617,1759231868010,-1274.06665076,0.00019452,2]
[388525618,1759231868024,-1298.16334924,0.00019452,2]
[388525619,1759231868035,-2572.23,0.00019452,2]
[388525620,1759231868046,-500.0,0.00019452,2]
[388525621,1759231868056,-500.0,0.00019452,2]
[388525622,1759231868067,-500.0,0.00019452,2]
[388525623,1759231868077,-500.0,0.00019452,2]
[388525624,1759231868087,-403.15802076,0.00019452,2]
[388525625,1759231868101,-96.84197924,0.00019452,2]
[388525626,1759231868110,-1765.39,0.00019452,2]
[388525627,1759231868120,-500.0,0.00019452,2]
[388525628,1759231868131,-500.0,0.00019452,2]
[388525629,1759231868141,-500.0,0.00019452,2]
[388525630,1759231868152,-1753.56,0.00019452,2]
[388525631,1759231868163,-994.59,0.00019452,2]
[388525632,1759231868176,-500.0,0.00019452,2]
[388525633,1759231868193,-500.0,0.00019452,2]
[388525634,1759231868209,-500.0,0.00019452,2]
[388525635,1759231868224,-500.0,0.00019452,2]
[388525636,1759231868236,-509.4,0.00019452,2]
[388525637,1759231868250,-500.0,0.00019452,2]
[388525638,1759231868262,-875.32,0.00019452,2]
[388525639,1759231868273,-192.08802076,0.00019452,2]
[388525640,1759231868288,-27.20813624,0.00019452,2]
[388525641,1759231868299,-500.0,0.00019452,2]
[388525642,1759231868309,-537.63,0.00019452,2]
[388525643,1759231868320,-500.0,0.00019452,2]
[388525644,1759231868331,-929.85,0.00019452,2]
[388525645,1759231868346,-726.89,0.00019452,2]
[388525646,1759231868356,-500.0,0.00019452,2]
[388525647,1759231868366,-500.0,0.00019452,2]
[388525648,1759231868376,-596.29186376,0.00019452,2]
[388525652,1759232001280,2000.0,0.00025999,120]
[388525657,1759232008805,524.038442,0.00025999,120]
[388525843,1759232163323,160.19,9.021e-05,2]
[388525844,1759232163461,160.19,0.00010024,2]
[388525845,1759232163555,160.19,0.00011026,2]
[388525846,1759232163814,160.19,0.00012029,2]
[388525847,1759232164036,160.19,0.00013031,2]
[388525848,1759232164295,160.19,0.00014033,2]
[388525849,1759232164483,160.19,0.00015036,2]
[388525850,1759232164715,160.19,0.00016038,2]
[388526091,1759232643837,-63502.59440761,0.0001704,2]
[388526190,1759233026897,-169.93,0.00016727,2]
[388526199,1759233032192,-195.0,0.00016896,2]
[388526200,1759233032202,-195.0,0.00016934,2]
[388526201,1759233032212,-2100.56690003,0.0001694,2]
[388526202,1759233032222,-2670.62360014,0.00016941,2]
[388526203,1759233032231,-300.0,0.00016997,2]
[388526204,1759233032241,-300.0,0.00017023,2]
[388526205,1759233032252,-406.67737514,0.00017023,2]
[388526206,1759233032262,-300.0,0.00017036,2]
[388526207,1759233032272,-1200.0,0.00017036,2]
[388526208,1759233032281,-286.0,0.00017037,2]
[388526209,1759233032291,-550.0,0.00017037,2]
[388526210,1759233032300,-500.0,0.00017037,2]
[388526211,1759233032310,-500.0,0.00017037,2]
[388526212,1759233032319,-500.0,0.00017037,2]
[388526213,1759233032329,-500.0,0.00017037,2]
[388526214,1759233032338,-500.0,0.00017037,2]
[388526215,1759233032347,-500.0,0.00017037,2]
[388526216,1759233032357,-112.30622615,0.00017037,2]
[388526217,1759233032369,-387.69377385,0.00017037,2]
[388526218,1759233032378,-168.95297401,0.00017037,2]
[388526219,1759233032398,-331.04702599,0.00017037,2]
[388526220,1759233032408,-500.0,0.00017037,2]
[388526221,1759233032417,-500.0,0.00017037,2]
[388526222,1759233032426,-500.0,0.00017037,2]
[388526223,1759233032436,-500.0,0.00017037,2]
[388526224,1759233032445,-500.0,0.00017037,2]
[388526225,1759233032454,-500.0,0.00017037,2]
[388526226,1759233032464,-500.0,0.00017037,2]
[388526227,1759233032473,-500.0,0.00017037,2]
[388526228,1759233032483,-500.0,0.00017037,2]
[388526229,1759233032492,-500.0,0.00017037,2]
[388526230,1759233032501,-500.0,0.00017037,2]
[388526231,1759233032511,-364.67103602,0.00017037,2]
[388526232,1759233032521,-500.0,0.00017037,2]
[388526233,1759233032530,-500.0,0.00017037,2]
[388526234,1759233032540,-500.0,0.00017037,2]
[388526235,1759233032551,-500.0,0.00017037,2]
[388526236,1759233032561,-500.0,0.00017037,2]
[388526237,1759233032570,-500.0,0.00017037,2]
[388526238,1759233032580,-500.0,0.00017037,2]
[388526239,1759233032589,-500.0,0.00017037,2]
[388526240,1759233032598,-500.0,0.00017037,2]
[388526241,1759233032608,-500.0,0.00017037,2]
[388526242,1759233032618,-500.0,0.00017037,2]
[388526243,1759233032628,-500.0,0.00017037,2]
[388526244,1759233032638,-500.0,0.00017037,2]
[388526246,1759233032648,-500.0,0.00017037,2]
[388526248,1759233032658,-500.0,0.00017037,2]
[388526249,1759233032670,-500.0,0.00017037,2]
[388526250,1759233032681,-500.0,0.00017037,2]
[388526251,1759233032692,-500.0,0.00017037,2]
[388526252,1759233032703,-500.0,0.00017037,2]
[388526253,1759233032713,-500.0,0.00017037,2]
[388526254,1759233032722,-500.0,0.00017037,2]
[388526255,1759233032732,-500.0,0.00017037,2]
[388526256,1759233032742,-500.0,0.00017037,2]
[388526257,1759233032751,-500.0,0.00017037,2]
[388526258,1759233032761,-500.0,0.00017037,2]
[388526259,1759233032776,-500.0,0.00017037,2]
[388526260,1759233032785,-500.0,0.00017037,2]
[388526261,1759233032797,-386.4671036,0.00017037,2]
[388526262,1759233032807,-500.0,0.00017037,2]
[388526263,1759233032816,-124303.88339505,0.0001704,2]
[388526264,1759233032831,-11269.50085629,0.0001704,2]
[388526265,1759233032844,-22657.80614486,0.0001704,2]
[388526266,1759233032858,-4902.19519619,0.0001704,2]
[388526267,1759233032868,-160.19,0.0001704,2]
[388526268,1759233032878,-2670.62360011,0.00017214,2]
[388526269,1759233032889,-283.68593889,0.0001728,2]
[388526270,1759233032973,-1158.88406111,0.0001728,2]
[388526271,1759233032984,-150.0,0.00017296,2]
[388526272,1759233032995,-408.78,0.00017312,2]
[388526273,1759233033005,-178.87,0.00017318,2]
[388526274,1759233033015,-1000.0,0.00017354,2]
[388526275,1759233033026,-908.622,0.00017354,2]
[388526276,1759233033036,-10744.04,0.00017472,2]
[388526277,1759233033046,-150.0,0.00017482,2]
[388526278,1759233033055,-150.0,0.00017482,2]
[388526279,1759233033064,-150.0,0.00017482,2]
[388526280,1759233033074,-150.0,0.00017482,2]
[388526281,1759233033084,-150.0,0.00017482,2]
[388526282,1759233033094,-150.0,0.00017482,2]
[388526283,1759233033103,-2670.62360011,0.00017487,2]
[388526284,1759233033113,-2216.14,0.0001754,2]
[388526285,1759233033124,-180.9,0.00017556,2]
[388526286,1759233033135,-150.0,0.00017607,7]
[388526287,1759233033144,-150.0,0.00017725,2]
[388526288,1759233033155,-666.0,0.00017729,3]
[388526289,1759233033165,-158.56,0.00017732,2]
[388526290,1759233033174,-2670.62360011,0.00017761,2]
[388526291,1759233033184,-200.0,0.00017785,2]
[388526292,1759233033194,-705.15,0.0001785,2]
[388526293,1759233033204,-3305.802573,0.00017855,2]
[388526294,1759233033214,-150.0,0.00017968,2]
[388526295,1759233033224,-2670.62360011,0.00018034,2]
[388526296,1759233033233,-160.19,0.00018043,2]
[388526297,1759233033243,-216.49,0.00018069,2]
[388526298,1759233033252,-782.93,0.00018117,2]
[388526299,1759233033261,-689.01,0.00018117,2]
[388526300,1759233033271,-150.0,0.0001813,2]
[388526301,1759233033281,-150.0,0.0001813,2]
[388526302,1759233033291,-150.0,0.00018211,2]
[388526303,1759233033301,-2670.62360011,0.00018307,2]
[388526304,1759233033311,-151.0,0.0001834,2]
[388526305,1759233033321,-151.0,0.0001834,2]
[388526306,1759233033332,-151.0,0.0001834,2]
[388526307,1759233033343,-500.0,0.0001834,2]
[388526308,1759233033354,-500.0,0.0001834,2]
[388526309,1759233033364,-500.0,0.0001834,2]
[388526310,1759233033374,-500.0,0.0001834,2]
[388526311,1759233033385,-500.0,0.0001834,2]
[388526312,1759233033395,-1430.76,0.00018352,2]
[388526313,1759233033405,-474.52590314,0.00018355,2]
[388526314,1759233033415,-526.8697848,0.00018367,2]
[388526315,1759233033425,-322.6107,0.00018367,2]
[388526316,1759233033435,-150.0,0.00018453,2]
[388526317,1759233033444,-150.0,0.00018453,2]
[388526318,1759233033454,-1300.0,0.00018467,2]
[388526319,1759233033465,-195.0,0.00018493,2]
[388526320,1759233033475,-195.0,0.00018493,2]
[388526321,1759233033485,-165.33,0.00018499,2]
[388526322,1759233033496,-195.0,0.00018539,2]
[388526323,1759233033505,-166.66,0.00018542,2]
[388526324,1759233033515,-2670.62360011,0.0001858,2]
[388526325,1759233033526,-420.0,0.00018607,2]
[388526326,1759233033535,-1430.76,0.00018626,2]
[388526327,1759233033545,-2000.0,0.00018633,2]
[388526328,1759233033554,-300.0,0.00018649,2]
[388526329,1759233033563,-150.0,0.00018696,2]
[388526330,1759233033573,-1680.0,0.00018699,2]
[388526331,1759233033583,-150.0,0.000187,2]
[388526332,1759233033592,-1252.57,0.000187,7]
[388526333,1759233033603,-705.15,0.00018742,2]
[388526334,1759233033612,-150.0,0.00018777,2]
[388526335,1759233033622,-150.0,0.00018777,2]
[388526336,1759233033632,-2670.62360011,0.00018854,2]
[388526337,1759233033641,-1430.76,0.000189,2]
[388526338,1759233033651,-168.0,0.00018903,2]
[388526339,1759233033660,-150.0,0.00018939,2]
[388526340,1759233033670,-150.0,0.00019036,2]
[388526341,1759233033679,-5243.49,0.00019052,7]
[388526342,1759233033689,-435.21537201,0.00019073,2]
[388526343,1759233033699,-159.44039609,0.00019078,2]
[388526344,1759233033708,-161.87561518,0.00019078,2]
[388526345,1759233033718,-5000.0,0.00019078,2]
[388526346,1759233033728,-588.9752,0.00019078,2]
[388526347,1759233033738,-200.0,0.000191,2]
[388526348,1759233033747,-2670.62360011,0.00019127,2]
[388526349,1759233033757,-254.71843264,0.00019173,2]
[388526350,1759233033770,-500.0,0.00019173,2]
[388526351,1759233033780,-221.86664329,0.00019173,2]
[388526352,1759233033790,-502.35284449,0.00019173,2]
[388526353,1759233033799,-500.0,0.00019173,2]
[388526354,1759233033808,-500.0,0.00019173,2]
[388526355,1759233033817,-500.0,0.00019173,2]
[388526356,1759233033827,-395.12494789,0.00019173,2]
[388526357,1759233033836,-1430.76,0.00019174,2]
[388526358,1759233033846,-151.0,0.00019175,2]
[388526359,1759233033855,-1000.0,0.00019177,2]
[388526360,1759233033865,-1000.0,0.00019177,2]
[388526361,1759233033875,-1144.65,0.00019178,2]
[388526362,1759233033884,-500.0,0.00019178,2]
[388526363,1759233033895,-500.0,0.00019178,2]
[388526364,1759233033905,-403.27548421,0.00019178,2]
[388526365,1759233033915,-500.0,0.00019178,2]
[388526366,1759233033925,-1236.9,0.00019178,2]
[388526367,1759233033940,-500.0,0.00019178,2]